[Event "Titled Tuesday Blitz July 18 Late 2023"]
[White "Barwinska, Ewa"]
[Black "Ricaurte Lopez, Juan Carlos"]
[WhiteFideId "21833761"]
[BlackFideId "3600327"]
[WhiteElo "2294"]
[BlackElo "2137"]
[Result "1/2-1/2"]
[Round "5"]
[TimeControl "180+2"]
[Date "2023.07.18"]
[WhiteClock "0:00:18"]
[BlackClock "0:00:15"]
[Board "161"]

1. e4 {[%clk 0:02:59]}  e5 {[%clk 0:02:58]} 2. Nf3 {[%clk 0:02:59]}  Nc6 {[%clk 0:02:57]} 3. Bc4 {[%clk 0:03:00]}  Nf6 {[%clk 0:02:55]} 4. d3 {[%clk 0:02:54]}  Bc5 {[%clk 0:02:52]} 5. O-O {[%clk 0:02:54]}  d6 {[%clk 0:02:50]} 6. h3 {[%clk 0:02:55]}  Na5 {[%clk 0:02:45]} 7. Bb3 {[%clk 0:02:51]}  Nxb3 {[%clk 0:02:43]} 8. axb3 {[%clk 0:02:52]}  O-O {[%clk 0:02:39]} 9. Nc3 {[%clk 0:02:50]}  h6 {[%clk 0:02:38]} 10. Be3 {[%clk 0:02:48]}  Bxe3 {[%clk 0:02:28]} 11. fxe3 {[%clk 0:02:48]}  Be6 {[%clk 0:02:25]} 12. d4 {[%clk 0:02:40]}  exd4 {[%clk 0:02:18]} 13. exd4 {[%clk 0:02:41]}  Re8 {[%clk 0:02:15]} 14. Qd3 {[%clk 0:02:26]}  c6 {[%clk 0:02:09]} 15. Rae1 {[%clk 0:02:06]}  Qe7 {[%clk 0:01:52]} 16. Nh4 {[%clk 0:02:02]}  Rad8 {[%clk 0:01:45]} 17. Nf5 {[%clk 0:01:48]}  Bxf5 {[%clk 0:01:41]} 18. Rxf5 {[%clk 0:01:49]}  Qe6 {[%clk 0:01:24]} 19. Qg3 {[%clk 0:01:42]}  Nh7 {[%clk 0:01:14]} 20. Ref1 {[%clk 0:01:36]}  f6 {[%clk 0:01:12]} 21. d5 {[%clk 0:01:34]}  Qe7 {[%clk 0:01:06]} 22. Qg6 {[%clk 0:01:23]}  Qf7 {[%clk 0:00:58]} 23. Qg4 {[%clk 0:01:12]}  Re5 {[%clk 0:00:53]} 24. Rxe5 {[%clk 0:01:00]}  dxe5 {[%clk 0:00:52]} 25. dxc6 {[%clk 0:01:01]}  bxc6 {[%clk 0:00:50]} 26. Rd1 {[%clk 0:01:01]}  Rxd1+ {[%clk 0:00:43]} 27. Qxd1 {[%clk 0:01:02]}  Qe7 {[%clk 0:00:41]} 28. Qd3 {[%clk 0:00:58]}  Nf8 {[%clk 0:00:36]} 29. Qc4+ {[%clk 0:00:56]}  Qe6 {[%clk 0:00:35]} 30. Qc5 {[%clk 0:00:55]}  Qd7 {[%clk 0:00:35]} 31. Kh2 {[%clk 0:00:52]}  Ne6 {[%clk 0:00:33]} 32. Qc4 {[%clk 0:00:52]}  Kh7 {[%clk 0:00:32]} 33. Na4 {[%clk 0:00:53]}  Nf4 {[%clk 0:00:28]} 34. Qc3 {[%clk 0:00:48]}  Qd1 {[%clk 0:00:26]} 35. Nc5 {[%clk 0:00:36]}  Qe2 {[%clk 0:00:24]} 36. Qf3 {[%clk 0:00:29]}  Qxc2 {[%clk 0:00:21]} 37. b4 {[%clk 0:00:27]}  Qxb2 {[%clk 0:00:19]} 38. Qg4 {[%clk 0:00:16]}  Qxb4 {[%clk 0:00:19]} 39. Qf5+ {[%clk 0:00:17]}  Kg8 {[%clk 0:00:18]} 40. Qc8+ {[%clk 0:00:17]}  Kh7 {[%clk 0:00:16]} 41. Qf5+ {[%clk 0:00:18]}  Kg8 {[%clk 0:00:15]} 42. Qc8+ {[%clk 0:00:17]}  Kh7 {[%clk 0:00:15]} 43. Qf5+ {[%clk 0:00:18]} 1/2-1/2


[Site "https://www.chess.com"]

[Event "Titled Tuesday Blitz July 18 Late 2023"]
[White "Sainz Aguirre, Ignacio"]
[Black "Todev, Simeon"]
[WhiteFideId "5101727"]
[BlackFideId "2925133"]
[WhiteElo "1964"]
[BlackElo "2368"]
[Result "0-1"]
[Round "5"]
[TimeControl "180+2"]
[Date "2023.07.18"]
[WhiteClock "0:01:22"]
[BlackClock "0:01:41"]
[Board "166"]

1. e4 {[%clk 0:03:00]}  c5 {[%clk 0:02:54]} 2. Nf3 {[%clk 0:03:00]}  Nc6 {[%clk 0:02:53]} 3. Bb5 {[%clk 0:03:00]}  e6 {[%clk 0:02:53]} 4. O-O {[%clk 0:02:53]}  g6 {[%clk 0:02:51]} 5. Re1 {[%clk 0:02:52]}  Bg7 {[%clk 0:02:48]} 6. c3 {[%clk 0:02:51]}  Nge7 {[%clk 0:02:48]} 7. a4 {[%clk 0:02:42]}  O-O {[%clk 0:02:46]} 8. Bf1 {[%clk 0:02:37]}  d5 {[%clk 0:02:44]} 9. d3 {[%clk 0:02:34]}  b6 {[%clk 0:02:40]} 10. Na3 {[%clk 0:02:26]}  Bb7 {[%clk 0:02:39]} 11. Nc2 {[%clk 0:02:20]}  Qc7 {[%clk 0:02:33]} 12. e5 {[%clk 0:02:09]}  Nxe5 {[%clk 0:02:00]} 13. Bf4 {[%clk 0:02:06]}  Nxf3+ {[%clk 0:01:50]} 14. Qxf3 {[%clk 0:02:05]}  e5 {[%clk 0:01:47]} 15. Bg5 {[%clk 0:01:54]}  Nf5 {[%clk 0:01:46]} 16. Ne3 {[%clk 0:01:28]}  Nxe3 {[%clk 0:01:43]} 17. Rxe3 {[%clk 0:01:22]}  d4 {[%clk 0:01:41]} 0-1


[Site "https://www.chess.com"]

[Event "Titled Tuesday Blitz July 18 Late 2023"]
[White "Martinez Alcantara, Jose Eduardo"]
[Black "Matlakov, Maxim"]
[WhiteFideId "3805662"]
[BlackFideId "4168003"]
[WhiteElo "3060"]
[BlackElo "2964"]
[Result "1-0"]
[Round "6"]
[TimeControl "180+2"]
[Date "2023.07.18"]
[WhiteClock "0:00:04"]
[BlackClock "0:00:02"]
[Board "2"]

1. e4 {[%clk 0:03:00]}  e5 {[%clk 0:03:00]} 2. Nf3 {[%clk 0:03:00]}  Nc6 {[%clk 0:03:00]} 3. Bb5 {[%clk 0:03:01]}  a6 {[%clk 0:02:53]} 4. Ba4 {[%clk 0:03:01]}  Nf6 {[%clk 0:02:50]} 5. d3 {[%clk 0:03:01]}  b5 {[%clk 0:02:40]} 6. Bb3 {[%clk 0:03:01]}  Be7 {[%clk 0:02:40]} 7. Nc3 {[%clk 0:02:56]}  d6 {[%clk 0:02:32]} 8. a3 {[%clk 0:02:56]}  O-O {[%clk 0:02:31]} 9. O-O {[%clk 0:02:49]}  Rb8 {[%clk 0:02:31]} 10. h3 {[%clk 0:02:45]}  h6 {[%clk 0:02:31]} 11. Be3 {[%clk 0:02:40]}  Re8 {[%clk 0:02:26]} 12. Re1 {[%clk 0:02:33]}  Bf8 {[%clk 0:02:25]} 13. Ne2 {[%clk 0:02:31]}  Be6 {[%clk 0:02:23]} 14. Bxe6 {[%clk 0:02:31]}  Rxe6 {[%clk 0:02:24]} 15. Ng3 {[%clk 0:02:30]}  d5 {[%clk 0:02:24]} 16. Qe2 {[%clk 0:02:21]}  Qd7 {[%clk 0:02:21]} 17. c3 {[%clk 0:02:21]}  Rd8 {[%clk 0:02:16]} 18. Rad1 {[%clk 0:02:21]}  Ree8 {[%clk 0:02:15]} 19. b4 {[%clk 0:02:19]}  Qe6 {[%clk 0:01:56]} 20. Qc2 {[%clk 0:02:14]}  Rd7 {[%clk 0:01:50]} 21. exd5 {[%clk 0:02:01]}  Nxd5 {[%clk 0:01:48]} 22. Bd2 {[%clk 0:02:02]}  Qg6 {[%clk 0:01:43]} 23. c4 {[%clk 0:01:59]}  Nb6 {[%clk 0:01:28]} 24. cxb5 {[%clk 0:01:50]}  axb5 {[%clk 0:01:28]} 25. Be3 {[%clk 0:01:49]}  Nd5 {[%clk 0:01:19]} 26. Bd2 {[%clk 0:01:49]}  Nb6 {[%clk 0:01:11]} 27. Ne4 {[%clk 0:01:49]}  Red8 {[%clk 0:00:43]} 28. Rc1 {[%clk 0:01:41]}  Nd4 {[%clk 0:00:24]} 29. Nxd4 {[%clk 0:01:41]}  Rxd4 {[%clk 0:00:24]} 30. Qxc7 {[%clk 0:01:31]}  Rc8 {[%clk 0:00:22]} 31. Qxe5 {[%clk 0:01:26]}  Rxd3 {[%clk 0:00:21]} 32. Rxc8 {[%clk 0:01:22]}  Nxc8 {[%clk 0:00:22]} 33. Qxb5 {[%clk 0:01:08]}  Rxa3 {[%clk 0:00:22]} 34. Bf4 {[%clk 0:00:51]}  Ne7 {[%clk 0:00:20]} 35. Bd6 {[%clk 0:00:47]}  Qe6 {[%clk 0:00:17]} 36. Qb8 {[%clk 0:00:30]}  Ng6 {[%clk 0:00:17]} 37. Bxf8 {[%clk 0:00:26]}  Nxf8 {[%clk 0:00:18]} 38. Qc7 {[%clk 0:00:12]}  Rb3 {[%clk 0:00:13]} 39. Qc1 {[%clk 0:00:04]}  Rxb4 {[%clk 0:00:12]} 40. Ng3 {[%clk 0:00:04]}  Qc4 {[%clk 0:00:11]} 41. Qd1 {[%clk 0:00:04]}  Qd4 {[%clk 0:00:10]} 42. Qf3 {[%clk 0:00:05]}  Qd2 {[%clk 0:00:07]} 43. Re8 {[%clk 0:00:04]}  Qc1+ {[%clk 0:00:05]} 44. Kh2 {[%clk 0:00:04]}  Rb1 {[%clk 0:00:05]} 45. Nf5 {[%clk 0:00:05]}  Qc7+ {[%clk 0:00:02]} 46. g3 {[%clk 0:00:05]}  Rb8 {[%clk 0:00:03]} 47. Ne7+ {[%clk 0:00:04]}  Kh7 {[%clk 0:00:03]} 48. Qxf7 {[%clk 0:00:04]}  Rxe8 {[%clk 0:00:02]} 49. Qg8# {[%clk 0:00:04]} 1-0


[Site "https://www.chess.com"]

[Event "Titled Tuesday Blitz July 18 Late 2023"]
[White "Bortnyk, Olexandr"]
[Black "Terry, Renato"]
[WhiteFideId "14120828"]
[BlackFideId "3803457"]
[WhiteElo "3035"]
[BlackElo "2957"]
[Result "1/2-1/2"]
[Round "6"]
[TimeControl "180+2"]
[Date "2023.07.18"]
[WhiteClock "0:00:19"]
[BlackClock "0:00:17"]
[Board "3"]

1. e4 {[%clk 0:03:00]}  c6 {[%clk 0:02:57]} 2. c4 {[%clk 0:02:59]}  e5 {[%clk 0:02:53]} 3. Nf3 {[%clk 0:02:58]}  d6 {[%clk 0:02:50]} 4. Nc3 {[%clk 0:02:58]}  c5 {[%clk 0:02:48]} 5. d3 {[%clk 0:02:55]}  Nc6 {[%clk 0:02:48]} 6. g3 {[%clk 0:02:53]}  g6 {[%clk 0:02:44]} 7. Bg2 {[%clk 0:02:53]}  Bg7 {[%clk 0:02:44]} 8. O-O {[%clk 0:02:52]}  Nge7 {[%clk 0:02:44]} 9. a3 {[%clk 0:02:50]}  O-O {[%clk 0:02:41]} 10. Rb1 {[%clk 0:02:48]}  a5 {[%clk 0:02:31]} 11. Nd5 {[%clk 0:02:38]}  h6 {[%clk 0:02:27]} 12. Bd2 {[%clk 0:02:32]}  Kh7 {[%clk 0:02:20]} 13. b4 {[%clk 0:02:31]}  axb4 {[%clk 0:02:18]} 14. axb4 {[%clk 0:02:32]}  Nxd5 {[%clk 0:02:16]} 15. cxd5 {[%clk 0:02:31]}  Nxb4 {[%clk 0:02:14]} 16. Bxb4 {[%clk 0:02:31]}  cxb4 {[%clk 0:02:15]} 17. Qb3 {[%clk 0:02:26]}  Ra3 {[%clk 0:02:05]} 18. Qxb4 {[%clk 0:02:24]}  Rxd3 {[%clk 0:02:02]} 19. Rfc1 {[%clk 0:02:18]}  f5 {[%clk 0:01:42]} 20. exf5 {[%clk 0:02:06]}  Bxf5 {[%clk 0:01:36]} 21. Rb3 {[%clk 0:01:45]}  Rxb3 {[%clk 0:01:24]} 22. Qxb3 {[%clk 0:01:45]}  Qf6 {[%clk 0:01:17]} 23. Qxb7 {[%clk 0:01:33]}  Bg4 {[%clk 0:01:09]} 24. Nh4 {[%clk 0:01:10]}  Qxf2+ {[%clk 0:01:09]} 25. Kh1 {[%clk 0:01:11]}  Qe3 {[%clk 0:00:45]} 26. Qb1 {[%clk 0:01:08]}  Bf5 {[%clk 0:00:35]} 27. Nxf5 {[%clk 0:01:08]}  gxf5 {[%clk 0:00:34]} 28. Rf1 {[%clk 0:01:07]}  e4 {[%clk 0:00:33]} 29. Qb4 {[%clk 0:00:46]}  Be5 {[%clk 0:00:31]} 30. Bxe4 {[%clk 0:00:41]}  Kg6 {[%clk 0:00:25]} 31. Qb1 {[%clk 0:00:31]}  Qg5 {[%clk 0:00:18]} 32. g4 {[%clk 0:00:28]}  Qd2 {[%clk 0:00:14]} 33. gxf5+ {[%clk 0:00:18]}  Kf6 {[%clk 0:00:14]} 34. Qc2 {[%clk 0:00:18]}  Qxc2 {[%clk 0:00:14]} 35. Bxc2 {[%clk 0:00:19]}  Rg8 {[%clk 0:00:10]} 36. Rf3 {[%clk 0:00:10]}  Bd4 {[%clk 0:00:07]} 37. Rg3 {[%clk 0:00:05]}  Rxg3 {[%clk 0:00:07]} 38. hxg3 {[%clk 0:00:06]}  h5 {[%clk 0:00:06]} 39. Kg2 {[%clk 0:00:06]}  Kg5 {[%clk 0:00:06]} 40. Kf3 {[%clk 0:00:05]}  Be5 {[%clk 0:00:07]} 41. Bd3 {[%clk 0:00:05]}  Bf6 {[%clk 0:00:07]} 42. Be4 {[%clk 0:00:05]}  Be5 {[%clk 0:00:07]} 43. Kg2 {[%clk 0:00:04]}  Bf6 {[%clk 0:00:07]} 44. Kh3 {[%clk 0:00:04]}  Be5 {[%clk 0:00:07]} 45. Bf3 {[%clk 0:00:05]}  Bf6 {[%clk 0:00:06]} 46. g4 {[%clk 0:00:05]}  hxg4+ {[%clk 0:00:07]} 47. Bxg4 {[%clk 0:00:06]}  Be5 {[%clk 0:00:07]} 48. Bd1 {[%clk 0:00:06]}  Kf6 {[%clk 0:00:07]} 49. Kg4 {[%clk 0:00:06]}  Bd4 {[%clk 0:00:07]} 50. Kf4 {[%clk 0:00:07]}  Be5+ {[%clk 0:00:08]} 51. Ke4 {[%clk 0:00:08]}  Kg5 {[%clk 0:00:09]} 52. Ba4 {[%clk 0:00:08]}  Kf6 {[%clk 0:00:10]} 53. Bd7 {[%clk 0:00:09]}  Kg5 {[%clk 0:00:10]} 54. Be6 {[%clk 0:00:10]}  Kf6 {[%clk 0:00:11]} 55. Kd3 {[%clk 0:00:10]}  Kg5 {[%clk 0:00:12]} 56. Kc4 {[%clk 0:00:11]}  Kf6 {[%clk 0:00:13]} 57. Kb5 {[%clk 0:00:12]}  Bf4 {[%clk 0:00:13]} 58. Kc6 {[%clk 0:00:13]}  Be5 {[%clk 0:00:13]} 59. Kd7 {[%clk 0:00:14]}  Bf4 {[%clk 0:00:14]} 60. Ke8 {[%clk 0:00:15]}  Be5 {[%clk 0:00:15]} 61. Kf8 {[%clk 0:00:16]}  Bf4 {[%clk 0:00:15]} 62. Ke8 {[%clk 0:00:17]}  Be5 {[%clk 0:00:16]} 63. Kd7 {[%clk 0:00:18]}  Bf4 {[%clk 0:00:16]} 64. Kc6 {[%clk 0:00:18]}  Be5 {[%clk 0:00:17]} 65. Kd7 {[%clk 0:00:19]} 1/2-1/2


[Site "https://www.chess.com"]

[Event "Titled Tuesday Blitz July 18 Late 2023"]
[White "Perez Ponsa, Federico"]
[Black "Duda, Jan-Krzysztof"]
[WhiteFideId "117927"]
[BlackFideId "1170546"]
[WhiteElo "2839"]
[BlackElo "3012"]
[Result "0-1"]
[Round "6"]
[TimeControl "180+2"]
[Date "2023.07.18"]
[WhiteClock "0:00:05"]
[BlackClock "0:00:04"]
[Board "7"]

1. e4 {[%clk 0:02:26]}  e6 {[%clk 0:03:00]} 2. d4 {[%clk 0:02:25]}  c5 {[%clk 0:02:53]} 3. d5 {[%clk 0:02:24]}  exd5 {[%clk 0:02:53]} 4. exd5 {[%clk 0:02:24]}  d6 {[%clk 0:02:54]} 5. Nc3 {[%clk 0:02:25]}  g6 {[%clk 0:02:46]} 6. Nf3 {[%clk 0:02:25]}  Bg7 {[%clk 0:02:46]} 7. Bb5+ {[%clk 0:02:25]}  Bd7 {[%clk 0:02:44]} 8. O-O {[%clk 0:02:24]}  Ne7 {[%clk 0:02:08]} 9. Bf4 {[%clk 0:02:11]}  a6 {[%clk 0:02:02]} 10. Bxd7+ {[%clk 0:01:57]}  Qxd7 {[%clk 0:02:03]} 11. Ne4 {[%clk 0:01:47]}  Nc8 {[%clk 0:02:03]} 12. Bh6 {[%clk 0:01:35]}  O-O {[%clk 0:02:02]} 13. Bxg7 {[%clk 0:01:35]}  Kxg7 {[%clk 0:02:03]} 14. Qd2 {[%clk 0:01:36]}  Qf5 {[%clk 0:01:37]} 15. Qc3+ {[%clk 0:01:31]}  f6 {[%clk 0:01:38]} 16. Nfg5 {[%clk 0:01:17]}  Qxd5 {[%clk 0:01:29]} 17. Qh3 {[%clk 0:01:03]}  fxg5 {[%clk 0:01:26]} 18. Rfe1 {[%clk 0:00:49]}  h6 {[%clk 0:01:15]} 19. Rad1 {[%clk 0:00:49]}  Qf5 {[%clk 0:01:11]} 20. Qc3+ {[%clk 0:00:49]}  Kh7 {[%clk 0:01:09]} 21. Rd3 {[%clk 0:00:38]}  g4 {[%clk 0:01:01]} 22. h3 {[%clk 0:00:33]}  h5 {[%clk 0:00:20]} 23. h4 {[%clk 0:00:22]}  Nd7 {[%clk 0:00:16]} 24. Ng5+ {[%clk 0:00:19]}  Kh6 {[%clk 0:00:09]} 25. Qd2 {[%clk 0:00:12]}  Qf4 {[%clk 0:00:09]} 26. Qe2 {[%clk 0:00:13]}  Ne5 {[%clk 0:00:08]} 27. Re3 {[%clk 0:00:13]}  Qf5 {[%clk 0:00:04]} 28. Rd1 {[%clk 0:00:11]}  b5 {[%clk 0:00:02]} 29. a4 {[%clk 0:00:10]}  Ra7 {[%clk 0:00:02]} 30. Ne4 {[%clk 0:00:08]}  Raf7 {[%clk 0:00:02]} 31. Ng3 {[%clk 0:00:09]}  Qxf2+ {[%clk 0:00:02]} 32. Qxf2 {[%clk 0:00:08]}  Rxf2 {[%clk 0:00:03]} 33. Ne4 {[%clk 0:00:09]}  Rxc2 {[%clk 0:00:03]} 34. axb5 {[%clk 0:00:08]}  axb5 {[%clk 0:00:03]} 35. Ra1 {[%clk 0:00:09]}  Rxb2 {[%clk 0:00:03]} 36. Ng5 {[%clk 0:00:09]}  b4 {[%clk 0:00:02]} 37. Rd1 {[%clk 0:00:07]}  b3 {[%clk 0:00:03]} 38. Rxe5 {[%clk 0:00:07]}  dxe5 {[%clk 0:00:02]} 39. Rd7 {[%clk 0:00:08]}  Rh8 {[%clk 0:00:02]} 40. Nf7+ {[%clk 0:00:06]}  Kg7 {[%clk 0:00:03]} 41. Ng5+ {[%clk 0:00:06]}  Kf8 {[%clk 0:00:03]} 42. Ne6+ {[%clk 0:00:06]}  Ke8 {[%clk 0:00:03]} 43. Rc7 {[%clk 0:00:07]}  Rg8 {[%clk 0:00:03]} 44. Rxc8+ {[%clk 0:00:05]}  Kd7 {[%clk 0:00:03]} 45. Rxg8 {[%clk 0:00:06]}  Kxe6 {[%clk 0:00:04]} 46. Rxg6+ {[%clk 0:00:06]}  Kd5 {[%clk 0:00:04]} 47. Rb6 {[%clk 0:00:05]}  g3 {[%clk 0:00:04]} 0-1


[Site "https://www.chess.com"]

[Event "Titled Tuesday Blitz July 18 Late 2023"]
[White "Bachmann, Axel"]
[Black "Firouzja, Alireza"]
[WhiteFideId "3700488"]
[BlackFideId "12573981"]
[WhiteElo "2842"]
[BlackElo "3121"]
[Result "0-1"]
[Round "6"]
[TimeControl "180+2"]
[Date "2023.07.18"]
[WhiteClock "0:00:15"]
[BlackClock "0:01:25"]
[Board "9"]

1. e4 {[%clk 0:02:58]}  c5 {[%clk 0:02:49]} 2. Nf3 {[%clk 0:02:57]}  d6 {[%clk 0:02:49]} 3. d4 {[%clk 0:02:57]}  cxd4 {[%clk 0:02:48]} 4. Nxd4 {[%clk 0:02:58]}  Nf6 {[%clk 0:02:48]} 5. Nc3 {[%clk 0:02:58]}  a6 {[%clk 0:02:49]} 6. h3 {[%clk 0:02:58]}  g6 {[%clk 0:02:43]} 7. Be3 {[%clk 0:02:50]}  Nc6 {[%clk 0:02:33]} 8. g4 {[%clk 0:02:45]}  Nxd4 {[%clk 0:02:26]} 9. Bxd4 {[%clk 0:02:45]}  Bh6 {[%clk 0:02:20]} 10. Qd3 {[%clk 0:02:20]}  O-O {[%clk 0:02:10]} 11. Be3 {[%clk 0:02:19]}  Bxe3 {[%clk 0:02:07]} 12. Qxe3 {[%clk 0:02:20]}  Be6 {[%clk 0:02:07]} 13. f4 {[%clk 0:02:07]}  Qa5 {[%clk 0:02:05]} 14. f5 {[%clk 0:01:58]}  Bd7 {[%clk 0:01:55]} 15. g5 {[%clk 0:01:57]}  Nxe4 {[%clk 0:01:52]} 16. Qxe4 {[%clk 0:01:53]}  Bc6 {[%clk 0:01:52]} 17. Qh4 {[%clk 0:01:16]}  Bxh1 {[%clk 0:01:48]} 18. Bd3 {[%clk 0:01:17]}  Qe5+ {[%clk 0:01:43]} 19. Kd2 {[%clk 0:01:16]}  Qh2+ {[%clk 0:01:38]} 20. Ke3 {[%clk 0:01:14]}  d5 {[%clk 0:01:33]} 21. Rf1 {[%clk 0:00:49]}  e5 {[%clk 0:01:31]} 22. Ne2 {[%clk 0:00:15]}  e4 {[%clk 0:01:25]} 0-1


[Site "https://www.chess.com"]

[Event "Titled Tuesday Blitz July 18 Late 2023"]
[White "Mamedov, Rauf"]
[Black "Ozen, Bahadir"]
[WhiteFideId "13401653"]
[BlackFideId "6337058"]
[WhiteElo "3045"]
[BlackElo "2838"]
[Result "1-0"]
[Round "6"]
[TimeControl "180+2"]
[Date "2023.07.18"]
[WhiteClock "0:02:10"]
[BlackClock "0:01:09"]
[Board "10"]

1. e4 {[%clk 0:02:58]}  d6 {[%clk 0:02:59]} 2. d3 {[%clk 0:02:57]}  Nf6 {[%clk 0:02:50]} 3. g3 {[%clk 0:02:56]}  c5 {[%clk 0:02:49]} 4. Bg2 {[%clk 0:02:56]}  Nc6 {[%clk 0:02:49]} 5. Nf3 {[%clk 0:02:57]}  e6 {[%clk 0:02:46]} 6. Nc3 {[%clk 0:02:57]}  Be7 {[%clk 0:02:46]} 7. O-O {[%clk 0:02:57]}  O-O {[%clk 0:02:46]} 8. Re1 {[%clk 0:02:57]}  Bd7 {[%clk 0:02:33]} 9. a4 {[%clk 0:02:52]}  Rc8 {[%clk 0:02:32]} 10. Bf4 {[%clk 0:02:51]}  a6 {[%clk 0:02:30]} 11. h3 {[%clk 0:02:50]}  h6 {[%clk 0:02:27]} 12. e5 {[%clk 0:02:47]}  dxe5 {[%clk 0:02:26]} 13. Nxe5 {[%clk 0:02:48]}  Nxe5 {[%clk 0:02:27]} 14. Bxe5 {[%clk 0:02:49]}  Bc6 {[%clk 0:02:27]} 15. Bxc6 {[%clk 0:02:49]}  Rxc6 {[%clk 0:02:28]} 16. Qf3 {[%clk 0:02:50]}  Nd7 {[%clk 0:02:03]} 17. Bf4 {[%clk 0:02:49]}  Nf6 {[%clk 0:02:01]} 18. a5 {[%clk 0:02:49]}  c4 {[%clk 0:02:00]} 19. dxc4 {[%clk 0:02:44]}  Rxc4 {[%clk 0:02:00]} 20. Qxb7 {[%clk 0:02:41]}  Rb4 {[%clk 0:02:00]} 21. Qxa6 {[%clk 0:02:40]}  Rxb2 {[%clk 0:02:00]} 22. Qd3 {[%clk 0:02:27]}  Qxd3 {[%clk 0:01:47]} 23. cxd3 {[%clk 0:02:27]}  Ra8 {[%clk 0:01:47]} 24. a6 {[%clk 0:02:21]}  Bb4 {[%clk 0:01:17]} 25. Rec1 {[%clk 0:02:19]}  Bc5 {[%clk 0:01:09]} 26. Na4 {[%clk 0:02:10]} 1-0


[Site "https://www.chess.com"]

[Event "Titled Tuesday Blitz July 18 Late 2023"]
[White "Bluebaum, Matthias"]
[Black "Zelbel, Patrick"]
[WhiteFideId "24651516"]
[BlackFideId "24624322"]
[WhiteElo "3013"]
[BlackElo "2798"]
[Result "1/2-1/2"]
[Round "6"]
[TimeControl "180+2"]
[Date "2023.07.18"]
[WhiteClock "0:00:16"]
[BlackClock "0:00:25"]
[Board "11"]

1. d4 {[%clk 0:03:00]}  g6 {[%clk 0:02:58]} 2. c4 {[%clk 0:03:01]}  Bg7 {[%clk 0:02:57]} 3. e4 {[%clk 0:03:01]}  c5 {[%clk 0:02:58]} 4. d5 {[%clk 0:03:02]}  d6 {[%clk 0:02:57]} 5. h3 {[%clk 0:03:01]}  e6 {[%clk 0:02:55]} 6. Nc3 {[%clk 0:03:02]}  exd5 {[%clk 0:02:52]} 7. cxd5 {[%clk 0:03:01]}  a6 {[%clk 0:02:32]} 8. a4 {[%clk 0:03:01]}  Ne7 {[%clk 0:02:26]} 9. Nf3 {[%clk 0:03:01]}  O-O {[%clk 0:02:26]} 10. Bd3 {[%clk 0:03:02]}  f5 {[%clk 0:02:24]} 11. O-O {[%clk 0:03:01]}  Nd7 {[%clk 0:02:21]} 12. exf5 {[%clk 0:02:52]}  Nxf5 {[%clk 0:02:22]} 13. Ng5 {[%clk 0:02:52]}  Ne5 {[%clk 0:02:16]} 14. Ne6 {[%clk 0:02:52]}  Bxe6 {[%clk 0:02:15]} 15. dxe6 {[%clk 0:02:53]}  Qh4 {[%clk 0:02:06]} 16. Bxf5 {[%clk 0:02:30]}  Rxf5 {[%clk 0:02:05]} 17. Qxd6 {[%clk 0:02:30]}  Nf3+ {[%clk 0:01:37]} 18. Kh1 {[%clk 0:01:46]}  Be5 {[%clk 0:01:35]} 19. Qd7 {[%clk 0:01:40]}  Nh2 {[%clk 0:01:11]} 20. Be3 {[%clk 0:01:40]}  Nxf1 {[%clk 0:01:05]} 21. Rxf1 {[%clk 0:01:41]}  Bxc3 {[%clk 0:01:04]} 22. bxc3 {[%clk 0:01:37]}  Qd8 {[%clk 0:01:01]} 23. Qxb7 {[%clk 0:01:34]}  Qd5 {[%clk 0:01:00]} 24. Qe7 {[%clk 0:01:08]}  Qd8 {[%clk 0:00:54]} 25. Qb7 {[%clk 0:01:03]}  Qd5 {[%clk 0:00:54]} 26. Qb6 {[%clk 0:00:59]}  Rf6 {[%clk 0:00:40]} 27. Rb1 {[%clk 0:00:49]}  Rxe6 {[%clk 0:00:34]} 28. Qc7 {[%clk 0:00:50]}  Qc6 {[%clk 0:00:29]} 29. Qf4 {[%clk 0:00:35]}  Qe4 {[%clk 0:00:28]} 30. Rb8+ {[%clk 0:00:30]}  Rxb8 {[%clk 0:00:27]} 31. Qxb8+ {[%clk 0:00:31]}  Re8 {[%clk 0:00:27]} 32. Qd6 {[%clk 0:00:29]}  Qe5 {[%clk 0:00:24]} 33. Qxa6 {[%clk 0:00:20]}  Rd8 {[%clk 0:00:20]} 34. Qc4+ {[%clk 0:00:20]}  Kg7 {[%clk 0:00:20]} 35. g3 {[%clk 0:00:13]}  Qd5+ {[%clk 0:00:20]} 36. Qxd5 {[%clk 0:00:13]}  Rxd5 {[%clk 0:00:21]} 37. c4 {[%clk 0:00:13]}  Rd1+ {[%clk 0:00:21]} 38. Kg2 {[%clk 0:00:12]}  Ra1 {[%clk 0:00:21]} 39. Bxc5 {[%clk 0:00:12]}  Rxa4 {[%clk 0:00:22]} 40. Bd4+ {[%clk 0:00:12]}  Kf7 {[%clk 0:00:22]} 41. Be3 {[%clk 0:00:13]}  Rxc4 {[%clk 0:00:22]} 42. g4 {[%clk 0:00:13]}  Rc6 {[%clk 0:00:22]} 43. Kg3 {[%clk 0:00:13]}  Re6 {[%clk 0:00:23]} 44. Kf3 {[%clk 0:00:13]}  Rc6 {[%clk 0:00:23]} 45. Kf4 {[%clk 0:00:14]}  Re6 {[%clk 0:00:24]} 46. Kf3 {[%clk 0:00:15]}  Ra6 {[%clk 0:00:25]} 47. Kf4 {[%clk 0:00:15]}  Re6 {[%clk 0:00:25]} 48. Kf3 {[%clk 0:00:16]} 1/2-1/2


[Site "https://www.chess.com"]

[Event "Titled Tuesday Blitz July 18 Late 2023"]
[White "Elsa167"]
[Black "Andreikin, Dmitry"]
[BlackFideId "4158814"]
[WhiteElo "2793"]
[BlackElo "2994"]
[Result "0-1"]
[Round "6"]
[TimeControl "180+2"]
[Date "2023.07.18"]
[WhiteClock "0:00:00"]
[BlackClock "0:01:50"]
[Board "12"]

1. d4 {[%clk 0:02:59]}  Nf6 {[%clk 0:03:00]} 2. c4 {[%clk 0:03:00]}  e6 {[%clk 0:02:59]} 3. g3 {[%clk 0:02:59]}  Bb4+ {[%clk 0:02:50]} 4. Nd2 {[%clk 0:02:59]}  c5 {[%clk 0:02:45]} 5. a3 {[%clk 0:02:59]}  Bxd2+ {[%clk 0:02:45]} 6. Qxd2 {[%clk 0:02:59]}  cxd4 {[%clk 0:02:45]} 7. Nf3 {[%clk 0:02:59]}  d5 {[%clk 0:02:45]} 8. cxd5 {[%clk 0:02:52]}  e5 {[%clk 0:02:45]} 9. Nxe5 {[%clk 0:02:39]}  Qxd5 {[%clk 0:02:45]} 10. Nf3 {[%clk 0:02:40]}  Nc6 {[%clk 0:02:44]} 11. Bg2 {[%clk 0:02:40]}  Bf5 {[%clk 0:02:42]} 12. O-O {[%clk 0:02:36]}  Be4 {[%clk 0:02:42]} 13. b4 {[%clk 0:02:31]}  O-O {[%clk 0:02:39]} 14. Bb2 {[%clk 0:02:31]}  Rad8 {[%clk 0:02:39]} 15. Rad1 {[%clk 0:01:39]}  Rfe8 {[%clk 0:02:38]} 16. Ne1 {[%clk 0:01:20]}  Qb3 {[%clk 0:02:25]} 17. Bxe4 {[%clk 0:01:12]}  Nxe4 {[%clk 0:02:25]} 18. Qc2 {[%clk 0:01:11]}  Qe6 {[%clk 0:02:19]} 19. Nf3 {[%clk 0:01:06]}  Qg6 {[%clk 0:02:02]} 20. Qc4 {[%clk 0:00:44]}  Ng5 {[%clk 0:01:52]} 21. Nxg5 {[%clk 0:00:37]}  Qxg5 {[%clk 0:01:53]} 22. Bxd4 {[%clk 0:00:37]}  Qg4 {[%clk 0:01:52]} 23. Qc3 {[%clk 0:00:00]}  Nxd4 {[%clk 0:01:50]} 0-1


[Site "https://www.chess.com"]